bitfinex/quotes_BTCUSD_20240905
["timestamp","ask_amount","ask_price","bid_price","bid_amount"]
[1725511275973,0.122083,57338.0,57337.0,0.001632]
[1725511276194,0.95279878,57338.0,57337.0,0.001632]
[1725511276846,1.30562712,57338.0,57337.0,0.001632]
[1725511277109,1.06146112,57338.0,57337.0,0.001632]
[1725511277535,1.06146112,57338.0,57337.0,0.024632]
[1725511278204,1.06146112,57338.0,57337.0,0.026632]
[1725511278695,1.08188138,57338.0,57337.0,0.026632]
[1725511279334,1.08188138,57338.0,57337.0,0.030632]
[1725511280234,0.9836636,57338.0,57337.0,0.030632]
[1725511280473,1.08188138,57338.0,57337.0,0.030632]
[1725511285122,1.08188138,57338.0,57337.0,0.024632]
[1725511285567,1.08188138,57338.0,57337.0,0.026632]
[1725511287313,1.00058138,57338.0,57337.0,0.026632]
[1725511288012,0.9023636,57338.0,57337.0,0.026632]
[1725511295039,1.00058138,57338.0,57337.0,0.026632]
[1725511296972,0.97321904,57338.0,57337.0,0.026632]
[1725511297881,0.87500126,57338.0,57337.0,0.026632]
[1725511299492,0.14250326,57338.0,57337.0,0.116432]
[1725511299740,0.14250326,57338.0,57337.0,0.236732]
[1725511299741,0.38666926,57338.0,57337.0,0.236732]
[1725511299974,0.63083526,57338.0,57337.0,0.236732]
[1725511301143,0.63083526,57338.0,57337.0,0.238732]
[1725511301644,0.63083526,57338.0,57337.0,0.236732]
[1725511301880,0.63083526,57338.0,57337.0,0.240732]
[1725511304972,0.38666926,57338.0,57337.0,0.240732]
[1725511305207,0.366249,57338.0,57337.0,0.240732]
[1725511307099,0.39360986,57338.0,57337.0,0.240732]
[1725511310612,0.63777586,57338.0,57337.0,0.240732]
[1725511310857,0.73599364,57338.0,57337.0,0.240732]
[1725511315894,0.98015964,57338.0,57337.0,0.007632]
[1725511317244,0.98015964,57338.0,57337.0,0.030632]
[1725511318587,0.88194186,57338.0,57337.0,0.030632]
[1725511321024,0.63777586,57338.0,57337.0,0.120332]
[1725511321464,0.88194186,57338.0,57337.0,0.120332]
[1725511324999,0.63777586,57338.0,57337.0,0.234932]
[1725511328036,0.63541589,57338.0,57337.0,0.234932]
[1725511330495,0.60805503,57338.0,57337.0,0.234932]
[1725511331599,0.36388903,57338.0,57337.0,0.234932]
[1725511332439,0.36388903,57338.0,57337.0,0.145232]
[1725511332656,0.63541525,57338.0,57337.0,0.030632]
[1725511337101,0.62197369,57338.0,57337.0,0.030632]
[1725511340426,0.62197369,57338.0,57337.0,0.228532]
[1725511341372,0.63900498,57338.0,57337.0,0.228532]
[1725511341571,0.66636521,57338.0,57337.0,0.228532]
[1725511348495,0.66636521,57338.0,57337.0,0.128532]
[1725511350649,0.63900498,57338.0,57337.0,0.151532]
[1725511353249,0.63900498,57338.0,57337.0,0.153164]
[1725511353689,0.63982098,57338.0,57337.0,0.153164]
[1725511353905,0.66718122,57338.0,57337.0,0.153164]
[1725511356522,0.02817624,57338.0,57337.0,0.153164]
[1725511357007,0.02817624,57338.0,57337.0,0.188174]
[1725511357008,0.122899,57338.0,57337.0,0.188174]
[1725511357425,0.000816,57338.0,57337.0,0.188174]
[1725511358710,0.000816,57338.0,57337.0,0.205174]
[1725511359594,0.611231,57338.0,57337.0,0.205174]
[1725511364855,1.02531478,57338.0,57337.0,0.018632]
[1725511365073,1.59026838,57338.0,57337.0,0.018632]
[1725511365282,1.72954678,57338.0,57337.0,0.00850088]
[1725511365496,1.286423,57334.0,57333.0,0.00163]
[1725511365749,1.48464078,57334.0,57333.0,0.00163]
[1725511365962,1.72882378,57334.0,57333.0,0.00163]
[1725511366182,1.51200909,57334.0,57333.0,0.00163]
[1725511366613,1.75619209,57334.0,57333.0,0.00163]
[1725511367077,1.75619209,57334.0,57333.0,0.00363]
[1725511367508,1.72882378,57334.0,57333.0,0.00363]
[1725511368355,1.72882378,57334.0,57333.0,0.00163]
[1725511368541,1.85969102,57334.0,57333.0,0.00363]
[1725511368790,1.87369102,57334.0,57333.0,0.00463]
[1725511368996,1.87369102,57334.0,57333.0,0.00263]
[1725511369205,1.88769102,57334.0,57333.0,0.00363]
[1725511369413,1.64350802,57334.0,57333.0,0.00363]
[1725511369635,1.51264078,57334.0,57333.0,0.00363]
[1725511369846,1.63781224,57334.0,57333.0,0.00363]
[1725511370053,1.88199524,57334.0,57333.0,0.00363]
[1725511370272,1.52445572,57334.0,57333.0,0.00363]
[1725511370705,1.60293127,57334.0,57333.0,0.00363]
[1725511371168,1.84711427,57334.0,57333.0,0.00363]
[1725511372165,1.84709372,57334.0,57333.0,0.00363]
[1725511372770,1.76863872,57334.0,57333.0,0.00363]
[1725511375026,1.79600812,57334.0,57333.0,0.00363]
[1725511378529,0.95305078,57321.0,57320.0,0.50176715]
[1725511378955,0.366363,57320.0,57319.0,0.201332]
[1725511379187,0.366331,57325.0,57324.0,0.1074]
[1725511379410,0.610552,57325.0,57324.0,0.1074]
[1725511379661,0.854773,57325.0,57324.0,0.1304]
[1725511379881,0.854773,57325.0,57324.0,0.2252]
[1725511380523,0.854773,57325.0,57324.0,0.2272]
[1725511381401,0.88214042,57325.0,57324.0,0.2272]
[1725511382700,0.63791942,57325.0,57324.0,0.2282]
[1725511383985,0.39369842,57325.0,57324.0,0.2282]
[1725511385339,0.02736742,57325.0,57324.0,0.36142778]
[1725511386451,0.344183,57334.0,57328.0,0.03501]
[1725511386661,0.122098,57331.0,57330.0,0.03401]
[1725511386897,0.122098,57331.0,57330.0,0.25841]
[1725511387112,0.366293,57331.0,57330.0,0.25841]
[1725511387295,0.366293,57331.0,57330.0,0.25741]
[1725511387696,0.366293,57331.0,57330.0,0.25641]
[1725511387906,0.367293,57331.0,57330.0,0.26641]
[1725511388489,0.368293,57331.0,57330.0,0.27541]
[1725511389601,0.612488,57331.0,57330.0,0.27541]
[1725511389958,0.63985231,57331.0,57330.0,0.27541]
[1725511390597,0.63985231,57331.0,57330.0,0.25241]
[1725511390598,0.98226509,57331.0,57330.0,0.25241]
[1725511391166,0.88404731,57331.0,57330.0,0.25241]
[1725511391743,0.88486331,57331.0,57330.0,0.25241]
[1725511393395,0.857499,57331.0,57330.0,0.25241]
[1725511394178,0.83459951,57331.0,57330.0,0.25241]
[1725511394654,0.59040451,57331.0,57330.0,0.2204]
[1725511394928,0.59040451,57331.0,57330.0,0.25541]
[1725511395121,0.61776982,57331.0,57330.0,0.27841]
[1725511395354,0.37357482,57331.0,57330.0,0.27841]
[1725511400581,0.34620951,57331.0,57330.0,0.27841]
[1725511401015,0.10201451,57331.0,57330.0,0.27841]
[1725511402304,0.002816,57331.0,57330.0,0.27841]
[1725511402513,0.124913,57331.0,57330.0,0.27841]
[1725511403588,0.002816,57331.0,57330.0,0.37662778]
[1725511403827,0.002816,57331.0,57330.0,0.27841]
[1725511405232,0.002816,57331.0,57330.0,0.280042]
[1725511409247,0.002816,57331.0,57330.0,0.37825978]
[1725511410794,0.002816,57331.0,57330.0,0.74455978]
[1725511417002,0.002816,57331.0,57330.0,0.99875978]
[1725511422400,0.002816,57331.0,57330.0,0.78735978]
[1725511422647,0.95571578,57331.0,57330.0,0.020632]
[1725511422873,1.15100241,57331.0,57330.0,0.001632]
[1725511423365,1.15200241,57331.0,57330.0,0.029632]
[1725511423839,1.15100241,57331.0,57330.0,0.001632]
[1725511424080,1.15100241,57331.0,57330.0,0.004632]
[1725511424765,1.15100241,57331.0,57330.0,0.007632]
[1725511431632,1.05278463,57331.0,57330.0,0.007632]
[1725511431850,0.87208463,57331.0,57330.0,0.007632]
[1725511432069,0.87208463,57331.0,57330.0,0.030632]
[1725511432070,0.62788963,57331.0,57330.0,0.030632]
[1725511433600,0.62788963,57331.0,57330.0,0.353932]
[1725511433601,0.000816,57331.0,57330.0,0.353932]
[1725511433809,0.000816,57331.0,57330.0,0.231832]
[1725511434456,0.611303,57331.0,57330.0,0.117632]
[1725511434702,0.855498,57331.0,57330.0,0.007632]
[1725511441783,1.268493,57331.0,57330.0,0.007632]
[1725511442008,1.368493,57331.0,57330.0,0.007632]
[1725511442697,1.37235175,57331.0,57330.0,0.007632]
[1725511445361,1.37260498,57331.0,57330.0,0.007632]
[1725511450827,1.10380498,57331.0,57330.0,0.007632]
[1725511451057,0.855498,57331.0,57330.0,0.213232]
[1725511451279,0.611303,57331.0,57330.0,0.213232]
[1725511451503,0.367108,57331.0,57330.0,0.213232]
[1725511451732,0.122913,57331.0,57330.0,0.236232]
[1725511452397,0.122097,57331.0,57330.0,0.236232]
[1725511454785,0.14946038,57331.0,57330.0,0.236232]
[1725511455824,0.02736338,57331.0,57330.0,0.236232]
[1725511456238,0.02736338,57331.0,57330.0,0.73924797]
[1725511456447,0.122086,57337.0,57332.0,0.122094]
[1725511456651,0.122086,57337.0,57334.0,0.0894]
[1725511456861,0.122086,57337.0,57335.0,0.05801]
[1725511457055,0.122087,57336.0,57335.0,0.16871]
[1725511458210,0.122087,57336.0,57335.0,0.17671]
[1725511459052,0.122087,57336.0,57335.0,0.18571]
[1725511459949,0.366261,57336.0,57335.0,0.18571]
[1725511462767,0.366261,57336.0,57335.0,0.187342]
[1725511464296,0.3936222,57336.0,57335.0,0.187342]
[1725511469680,0.3936222,57336.0,57335.0,0.271142]
[1725511470094,0.1494482,57336.0,57335.0,0.271142]
[1725511470682,0.122087,57336.0,57335.0,0.271142]
[1725511474035,0.14944772,57336.0,57335.0,0.271142]
[1725511477496,0.244161,57340.0,57335.0,0.271142]
[1725511477699,0.122087,57336.0,57335.0,0.271142]
[1725511478448,0.122085,57337.0,57335.0,0.254142]
[1725511478658,0.122085,57337.0,57335.0,0.258142]
[1725511478865,0.122085,57337.0,57335.0,0.262142]
[1725511479076,0.122087,57336.0,57335.0,0.262142]
[1725511479941,0.122087,57336.0,57335.0,0.258142]
[1725511480183,0.122087,57336.0,57335.0,0.254142]
[1725511480403,0.122087,57336.0,57335.0,0.261142]
[1725511481080,0.122087,57336.0,57335.0,0.270142]
[1725511481535,0.122087,57336.0,57335.0,0.263142]
[1725511482404,0.366261,57336.0,57335.0,0.263142]
[1725511482614,0.366261,57336.0,57335.0,0.271142]
[1725511485407,0.122087,57336.0,57335.0,0.271142]
[1725511486760,0.366261,57336.0,57335.0,0.271142]
[1725511487694,0.122087,57336.0,57335.0,0.271142]
[1725511490661,0.244983,57338.0,57335.0,0.271142]
[1725511492212,0.244983,57338.0,57335.0,0.254142]
[1725511492413,0.122087,57336.0,57335.0,0.254142]
[1725511492621,0.122087,57336.0,57335.0,0.267142]
[1725511493887,0.122087,57336.0,57335.0,0.254142]
[1725511494076,0.122087,57336.0,57335.0,0.262142]
[1725511494265,0.122087,57336.0,57335.0,0.271142]
[1725511494688,0.14944679,57337.0,57335.0,0.271142]
[1725511495635,0.122087,57336.0,57335.0,0.262142]
[1725511495842,0.122087,57336.0,57335.0,0.270142]
[1725511496099,0.122087,57336.0,57335.0,0.262142]
[1725511496448,0.244983,57338.0,57335.0,0.262142]
[1725511496449,0.000816,57338.0,57335.0,0.262142]
[1725511496659,0.122087,57336.0,57335.0,0.262142]
[1725511497307,0.122087,57336.0,57335.0,0.254142]
[1725511497516,0.122087,57336.0,57335.0,0.261142]
[1725511497727,0.70865278,57336.0,57335.0,0.075642]
[1725511497942,0.70865278,57336.0,57335.0,0.068642]
[1725511498293,0.610435,57336.0,57335.0,0.076642]
[1725511499378,0.488348,57336.0,57335.0,0.076642]
[1725511499591,0.61558151,57336.0,57335.0,0.076642]
[1725511499802,0.64294305,57336.0,57335.0,0.076642]
[1725511501499,0.74116083,57336.0,57335.0,0.076642]
[1725511501886,0.64294305,57336.0,57335.0,0.076642]
[1725511504238,0.39876905,57336.0,57335.0,0.159842]
[1725511504539,0.02736154,57336.0,57335.0,0.269242]
[1725511504746,0.02736154,57336.0,57335.0,0.391331]
[1725511505404,0.02736154,57336.0,57335.0,0.269242]
[1725511506666,0.63779654,57336.0,57335.0,0.076642]
[1725511507084,0.610435,57336.0,57335.0,0.076642]
[1725511510084,0.611251,57336.0,57335.0,0.076642]
[1725511516438,0.122903,57336.0,57335.0,0.279342]
[1725511516663,0.367077,57336.0,57335.0,0.279342]
[1725511516908,0.122903,57336.0,57335.0,0.279342]
[1725511517634,0.000816,57336.0,57335.0,0.279342]
[1725511519377,0.24499,57336.0,57335.0,0.279342]
[1725511519674,0.000816,57336.0,57335.0,0.279342]
[1725511521823,0.122083,57338.0,57335.0,0.279342]
[1725511522235,0.000816,57336.0,57335.0,0.279342]
[1725511523331,0.000816,57336.0,57335.0,0.270342]
[1725511523961,0.122903,57336.0,57335.0,0.262342]
[1725511524169,0.122903,57336.0,57335.0,0.001632]
[1725511524170,0.70946878,57336.0,57335.0,0.001632]
[1725511524378,0.70946878,57336.0,57335.0,0.007632]
[1725511524379,0.95364278,57336.0,57335.0,0.007632]
[1725511524814,0.95364278,57336.0,57335.0,0.008632]
[1725511525036,0.95364278,57336.0,57335.0,0.001632]
[1725511525252,0.95364278,57336.0,57335.0,0.018632]
[1725511525661,0.95364278,57336.0,57335.0,0.010632]
[1725511525878,0.857425,57336.0,57335.0,0.010632]
[1725511526096,0.857425,57336.0,57335.0,0.001632]
[1725511526543,0.858425,57336.0,57335.0,0.001632]
[1725511527051,0.856425,57336.0,57335.0,0.001632]
[1725511527277,0.856425,57336.0,57335.0,0.002632]
[1725511527747,0.855425,57336.0,57335.0,0.002632]
[1725511527952,0.855425,57336.0,57335.0,0.001632]
[1725511528165,0.89903181,57336.0,57335.0,0.006632]
[1725511528566,0.89903181,57336.0,57335.0,0.005632]
[1725511528736,0.89903181,57336.0,57335.0,0.010632]
[1725511529693,0.87166961,57336.0,57335.0,0.010632]
[1725511530432,0.488348,57336.0,57335.0,0.010632]
[1725511530673,0.610435,57336.0,57335.0,0.010632]
[1725511530882,0.854609,57336.0,57335.0,0.010632]
[1725511531738,0.610435,57336.0,57335.0,0.010632]
[1725511531946,0.366261,57336.0,57335.0,0.118032]
[1725511533605,0.367077,57336.0,57335.0,0.118032]
[1725511534969,0.39443866,57336.0,57335.0,0.118032]
[1725511537638,0.02817766,57336.0,57335.0,0.44213878]
[1725511537846,0.02817766,57336.0,57335.0,0.221832]
[1725511538029,0.02817766,57336.0,57335.0,0.343921]
[1725511539392,0.000816,57336.0,57335.0,0.87077488]
[1725511540076,0.000816,57336.0,57335.0,0.86677488]
[1725511540279,0.000816,57336.0,57335.0,0.86177488]
[1725511540486,0.000816,57336.0,57335.0,0.86577488]
[1725511540905,0.07861032,57352.0,57346.0,0.244131]
[1725511541113,0.122862,57356.0,57351.0,0.09821778]
[1725511541318,0.122862,57356.0,57352.0,0.2196]
[1725511541524,0.122047,57355.0,57352.0,0.2196]
[1725511541724,0.01730945,57356.0,57352.0,0.2196]
[1725511541926,0.13935545,57356.0,57352.0,0.2196]
[1725511543037,0.13935545,57356.0,57352.0,0.1365]
[1725511543241,0.13935545,57356.0,57353.0,0.0834]
[1725511543364,0.13935545,57356.0,57354.0,0.023]
[1725511544003,0.01730945,57356.0,57355.0,0.92103046]
[1725511544201,0.000816,57356.0,57355.0,0.86699346]
[1725511544351,0.000816,57356.0,57355.0,1.11108646]
[1725511544778,0.01599208,57369.0,57365.0,0.11841]
[1725511544982,0.02735005,57371.0,57367.0,0.03501]
[1725511545201,0.02735005,57371.0,57365.0,0.0834]
[1725511545202,0.02735005,57371.0,57369.0,0.03501]
[1725511545607,0.14936305,57371.0,57370.0,0.13921]
[1725511545824,0.14936305,57371.0,57370.0,0.16221]
[1725511546059,0.24936305,57371.0,57370.0,0.16221]
[1725511546692,0.14936305,57371.0,57370.0,0.16221]
[1725511546924,0.39338805,57371.0,57370.0,0.16221]
[1725511547136,0.14936305,57371.0,57370.0,0.16221]
[1725511547571,0.02735005,57371.0,57370.0,0.16221]
[1725511548011,0.63741205,57371.0,57370.0,0.042]
[1725511552203,0.63741205,57371.0,57370.0,0.033]
[1725511552352,0.63741205,57371.0,57370.0,0.023]
[1725511552549,0.63741205,57371.0,57370.0,0.003]
[1725511552728,0.63741205,57371.0,57370.0,0.026]
[1725511552939,0.63741205,57371.0,57370.0,0.023]
[1725511553162,0.63741205,57371.0,57367.0,0.03501]
[1725511553163,0.122017,57369.0,57368.0,0.023]
[1725511553368,0.122017,57369.0,57368.0,0.02274211]
[1725511553833,0.610085,57369.0,57368.0,0.02274211]
[1725511554946,0.48927846,57369.0,57359.0,0.112]
[1725511555225,0.366108,57360.0,57359.0,0.112]
[1725511555657,0.61018,57360.0,57359.0,0.135]
[1725511556065,0.854252,57360.0,57359.0,0.135]
[1725511556276,0.854252,57360.0,57359.0,0.003]
[1725511556484,0.854252,57360.0,57356.0,0.03501]
[1725511556485,0.610212,57357.0,57356.0,0.03501]
[1725511557535,0.610212,57357.0,57356.0,0.04901]
[1725511558206,0.610212,57357.0,57356.0,0.07201]
[1725511559090,0.610212,57357.0,57356.0,0.08601]
[1725511563918,0.63756208,57357.0,57356.0,0.08601]
[1725511569113,0.88164708,57357.0,57356.0,0.08601]
[1725511570236,0.63756208,57357.0,57356.0,0.08601]
[1725511570463,0.63756208,57357.0,57356.0,0.08764]
[1725511571209,0.88164708,57357.0,57356.0,0.02963]
[1725511571449,0.954297,57357.0,57356.0,0.02963]
[1725511571680,1.459467,57357.0,57356.0,0.02963]
[1725511571919,1.215382,57357.0,57356.0,0.02963]
[1725511572148,1.215382,57357.0,57356.0,0.01563]
[1725511572412,1.216382,57357.0,57356.0,0.01563]
[1725511572658,1.216382,57357.0,57356.0,0.00163]
[1725511572896,1.215382,57357.0,57356.0,0.00163]
[1725511573127,1.218382,57357.0,57356.0,0.00163]
[1725511573343,1.216382,57357.0,57356.0,0.00263]
[1725511573767,1.219382,57357.0,57356.0,0.00363]
[1725511575834,1.24673911,57357.0,57356.0,0.00363]
[1725511578145,1.24573911,57357.0,57356.0,0.00263]
[1725511578604,1.25373911,57357.0,57356.0,0.00363]
[1725511579023,1.24573911,57357.0,57356.0,0.00263]
[1725511579230,1.22873911,57357.0,57356.0,0.00263]
[1725511579438,1.23673911,57357.0,57356.0,0.00363]
[1725511579669,1.23373911,57357.0,57356.0,0.00263]
[1725511580134,1.23973911,57357.0,57356.0,0.00363]
[1725511580357,1.23973911,57357.0,57356.0,0.00263]
[1725511580358,0.98965411,57357.0,57356.0,0.00263]
[1725511580566,0.98965411,57357.0,57356.0,0.21093]
[1725511580786,0.99565411,57357.0,57356.0,0.21193]
[1725511581314,0.968297,57357.0,57356.0,0.21193]
[1725511584512,0.99565104,57357.0,57356.0,0.21193]
[1725511584966,0.99565104,57357.0,57356.0,0.00363]
[1725511585677,1.23973604,57357.0,57356.0,0.00363]
[1725511586572,0.87360904,57357.0,57356.0,0.00363]
[1725511586773,0.99565104,57357.0,57356.0,0.00363]
[1725511587663,1.23973604,57357.0,57356.0,0.00363]
[1725511592060,0.99565104,57357.0,57356.0,0.00363]
[1725511593004,0.968297,57357.0,57356.0,0.21563]
[1725511593215,0.968297,57357.0,57356.0,0.23863]
[1725511593216,0.724212,57357.0,57356.0,0.23863]
[1725511594152,0.718212,57357.0,57356.0,0.23763]
[1725511594575,0.720212,57357.0,57356.0,0.23763]
[1725511594806,0.712212,57357.0,57356.0,0.23663]
[1725511595019,0.714212,57357.0,57356.0,0.23663]
[1725511595269,0.715028,57357.0,57356.0,0.23663]
[1725511596177,0.13216885,57357.0,57356.0,0.23663]
[1725511596393,0.39829585,57357.0,57356.0,0.23663]
[1725511596605,0.370943,57357.0,57356.0,0.23663]
[1725511597638,0.004816,57357.0,57356.0,0.23663]
[1725511597848,0.004816,57357.0,57356.0,0.602763]
[1725511598051,0.004816,57357.0,57356.0,0.637773]
[1725511598685,0.002816,57357.0,57356.0,0.637773]
[1725511599107,0.002816,57357.0,57356.0,0.648773]
[1725511599361,0.000816,57357.0,57356.0,0.648773]
[1725511599567,0.000816,57357.0,57356.0,0.893862]
[1725511599768,0.001816,57357.0,57356.0,1.293862]
[1725511599976,0.000816,57357.0,57356.0,1.281862]
[1725511600250,0.000815,57368.0,57359.0,0.01]
[1725511600455,0.000815,57368.0,57367.0,0.23741]
[1725511600659,0.000815,57368.0,57367.0,0.26041]
[1725511601083,0.000815,57368.0,57367.0,0.25941]
[1725511601747,0.000815,57368.0,57367.0,0.26641]
[1725511601951,0.000815,57368.0,57367.0,0.388431]
[1725511602288,0.000815,57368.0,57367.0,0.63367546]
[1725511602492,0.000815,57368.0,57367.0,0.87771746]
[1725511602946,0.02815969,57368.0,57367.0,0.87771746]
[1725511603323,0.02815969,57368.0,57367.0,1.12175946]
[1725511603985,0.000815,57368.0,57367.0,1.13075946]
[1725511612292,0.000815,57368.0,57367.0,1.14075946]
[1725511617022,0.000815,57368.0,57367.0,1.13075946]
[1725511618548,0.000815,57368.0,57367.0,1.38480146]
[1725511618800,0.000815,57368.0,57367.0,1.78480146]
[1725511619469,0.000815,57368.0,57367.0,1.78643146]
[1725511626187,0.000815,57368.0,57367.0,1.63920295]
[1725511628308,0.000815,57368.0,57367.0,1.90524495]
[1725511629155,0.000815,57368.0,57367.0,1.89824495]
[1725511629794,0.000815,57368.0,57367.0,1.91124495]
[1725511630020,0.000815,57368.0,57367.0,2.05817777]
[1725511630234,0.000815,57368.0,57367.0,2.04517777]
[1725511630440,0.000815,57368.0,57367.0,2.05017777]
[1725511630909,0.24394,57392.0,57384.0,0.46334877]
[1725511631130,0.121973,57390.0,57386.0,0.121979]
[1725511631334,0.121973,57390.0,57387.0,0.023]
[1725511631535,0.121969,57392.0,57387.0,0.144976]
[1725511631714,0.121969,57392.0,57388.0,0.121976]
[1725511631958,0.121969,57392.0,57389.0,0.023]
[1725511632168,0.243928,57394.0,57389.0,0.023]
[1725511632451,0.122968,57392.0,57389.0,0.023]
[1725511632680,0.121968,57392.0,57389.0,0.023]
[1725511632883,0.001,57392.0,57390.0,0.24494877]
[1725511633112,0.001,57392.0,57391.0,0.023]
[1725511633339,0.121962,57395.0,57391.0,0.1348]
[1725511633770,0.24392,57396.0,57391.0,0.1348]
[1725511633771,0.001,57392.0,57391.0,0.1348]
[1725511634240,0.002,57392.0,57391.0,0.1348]
[1725511634446,0.001,57392.0,57391.0,0.1348]
[1725511635069,0.121964,57394.0,57391.0,0.1348]
[1725511635303,0.121964,57394.0,57391.0,0.1388]
[1725511636139,0.24392,57396.0,57391.0,0.1408]
[1725511636374,0.121962,57395.0,57391.0,0.1408]
[1725511636595,0.121962,57395.0,57391.0,0.1388]
[1725511637009,0.14929584,57395.0,57391.0,0.1348]
[1725511637482,0.14929584,57395.0,57391.0,0.1358]
[1725511637698,0.14929584,57395.0,57391.0,0.1348]
[1725511639177,0.15029584,57395.0,57391.0,0.1348]
[1725511640708,0.122962,57395.0,57391.0,0.1348]
[1725511640913,0.1162632,57398.0,57392.0,0.121967]
[1725511641115,0.1162632,57398.0,57393.0,0.023]
[1725511641333,0.121959,57397.0,57393.0,0.023]
[1725511641543,0.1,57396.0,57393.0,0.023]
[1725511643191,0.221959,57396.0,57393.0,0.023]
[1725511643598,0.222959,57396.0,57393.0,0.023]
[1725511643816,0.121962,57395.0,57393.0,0.023]
[1725511644045,0.243947,57390.0,57385.0,0.12811]
[1725511644250,0.24494877,57391.0,57385.0,0.12811]
[1725511644454,0.243945,57390.0,57385.0,0.12811]
[1725511644660,0.12198,57386.0,57385.0,0.03501]
[1725511645120,0.365941,57386.0,57385.0,0.03501]
[1725511645315,0.609902,57386.0,57385.0,0.03501]
[1725511645674,0.365941,57386.0,57385.0,0.03501]
[1725511645879,0.121985,57384.0,57382.0,0.03501]
[1725511646085,0.121985,57384.0,57383.0,0.05801]
[1725511646295,0.635725,57384.0,57383.0,0.03501]
[1725511647161,0.121996,57379.0,57376.0,0.03501]
[1725511647578,0.121998,57378.0,57376.0,0.03501]
[1725511647998,0.121998,57378.0,57377.0,0.05801]
[1725511648228,0.365982,57380.0,57377.0,0.05801]
[1725511648437,0.121997,57378.0,57377.0,0.05801]
[1725511648668,0.39333185,57378.0,57377.0,0.05801]
[1725511648925,0.63732685,57378.0,57377.0,0.05801]
[1725511649804,0.63732685,57378.0,57376.0,0.009]
[1725511649805,0.6358,57377.0,57376.0,0.018]
[1725511650008,0.943,57377.0,57376.0,0.018]
[1725511650446,0.943,57377.0,57376.0,0.009]
[1725511651279,0.610062,57371.0,57370.0,1.2704]
[1725511651742,0.610062,57371.0,57370.0,1.2934]
[1725511651954,0.63740548,57371.0,57370.0,0.023]
[1725511652180,0.244029,57370.0,57368.0,0.023]
[1725511652435,0.366051,57369.0,57368.0,0.023]
[1725511653179,0.122017,57369.0,57368.0,0.2058]
[1725511653408,0.122017,57369.0,57368.0,0.2288]
[1725511653656,0.02734348,57371.0,57368.0,0.2288]
[1725511653887,0.244,57377.0,57370.0,0.005]
[1725511654165,0.122006,57374.0,57368.0,0.2288]
[1725511654404,0.122005,57375.0,57371.0,0.023]
[1725511654624,0.122007,57374.0,57369.0,0.023]
[1725511656505,0.122007,57374.0,57370.0,0.0975]
[1725511656770,0.244,57377.0,57371.0,0.023]
[1725511657011,0.02734397,57374.0,57371.0,0.023]
[1725511657529,0.02734397,57374.0,57371.0,0.02648578]
[1725511657774,0.02734397,57374.0,57372.0,0.2155]
[1725511658071,0.02734397,57374.0,57373.0,0.023]
[1725511658977,0.02734397,57374.0,57373.0,0.48854229]
[1725511659196,0.02734397,57374.0,57373.0,1.10789077]
[1725511659424,0.02734397,57374.0,57373.0,1.35390777]
[1725511659667,0.243928,57394.0,57381.0,0.0905]
[1725511659883,0.121972,57390.0,57383.0,0.212486]
[1725511660124,0.02733807,57389.0,57383.0,0.212486]
[1725511660333,0.02733807,57389.0,57388.0,0.03501]
[1725511660548,0.122777,57395.0,57388.0,0.179985]
[1725511660785,0.121964,57394.0,57389.0,0.023]
[1725511661057,0.122778,57395.0,57391.0,0.0951]
[1725511661299,0.000815,57395.0,57392.0,0.144967]
[1725511661553,0.000815,57395.0,57393.0,0.46463314]
[1725511661793,0.000815,57395.0,57394.0,0.023]
[1725511662305,0.000815,57395.0,57394.0,0.02648436]
[1725511662524,0.000815,57395.0,57394.0,0.02648431]
[1725511663009,0.000815,57395.0,57394.0,0.023]
[1725511663752,0.122776,57395.0,57394.0,0.02274211]
[1725511663980,0.000815,57395.0,57393.0,0.003]
[1725511664461,0.000815,57395.0,57393.0,0.004]
[1725511664707,0.000815,57395.0,57391.0,0.36691777]
[1725511664937,0.000815,57395.0,57394.0,0.007]
[1725511665187,0.000815,57395.0,57394.0,0.003]
[1725511665429,0.000815,57395.0,57391.0,0.36691777]
[1725511665669,0.000815,57395.0,57393.0,0.007]
[1725511665901,0.000815,57395.0,57394.0,0.023]
[1725511666401,0.000815,57395.0,57394.0,0.027]
[1725511666858,0.02814732,57395.0,57394.0,0.027]
[1725511667320,0.02814732,57395.0,57394.0,0.03]
[1725511667572,0.02814732,57395.0,57394.0,0.026]
[1725511668578,0.02814732,57395.0,57394.0,0.03]
[1725511670133,0.02814732,57395.0,57394.0,0.15631]
[1725511671183,0.02814732,57395.0,57394.0,0.15331]
[1725511671396,0.02814732,57395.0,57394.0,0.14931]
[1725511671608,0.02814732,57395.0,57394.0,0.15631]
[1725511671817,0.02814732,57395.0,57394.0,0.16631]
[1725511672032,0.02814732,57395.0,57394.0,0.27681]
[1725511673167,0.02814732,57395.0,57394.0,0.26981]
[1725511673376,0.02814732,57395.0,57394.0,0.27781]
[1725511673589,0.02814732,57395.0,57394.0,0.399773]
[1725511674468,0.02814732,57395.0,57394.0,0.6437]
[1725511678149,0.02814732,57395.0,57394.0,0.27781]
[1725511678335,0.02814732,57395.0,57394.0,0.399773]
[1725511678612,0.02814732,57395.0,57394.0,0.27781]
[1725511679036,0.02814732,57395.0,57394.0,0.399773]
[1725511679246,0.243893,57403.0,57394.0,0.399773]
[1725511679454,0.121951,57400.0,57394.0,0.399773]
[1725511679674,0.121951,57400.0,57395.0,0.156971]
[1725511679889,0.121951,57400.0,57396.0,0.023]
[1725511680114,0.121951,57400.0,57397.0,0.0956]
[1725511680337,0.121951,57400.0,57398.0,0.023]
[1725511680552,0.121953,57399.0,57398.0,0.023]
[1725511681200,0.243896,57402.0,57398.0,0.023]
[1725511681407,0.121951,57400.0,57398.0,0.023]
[1725511681866,0.121951,57400.0,57398.0,0.028]